Cogmind - Beta 13 @@@ ROGUE MODE // 2024.04.01 @ 13:11:24 Player: Multimark Result: Destroyed by as-78145 with Assembled Heavy Rifle Performance ------------- Evolutions (0) 0 Regions Visited (2) 400 Robots Destroyed (9) 45 Value Destroyed (135) 135 Prototype IDs (0) 0 Alien Tech Used (0) 0 Bonus (0) 0 TOTAL SCORE: 580 Bonus ------- None Cogmind --------- Core Integrity 0/250 Matter 285/300 Energy 100/100 System Corruption 3% Temperature Cool (0) Movement Core (150) Ox2 Location -10/Mines Parts ------- > --- POWER (1) -------- (None) > --- PROPULSION (2) --- (None) > --- UTILITY (2) ------ Weapon Shielding > --- WEAPON (2) ------- Particle Gun Grenade Launcher > --- INVENTORY (5) ---- High-capacity Battery (250) Terrain Scanner Utility Shielding Peak State ------------ > --- POWER ------------ Light Ion Engine > --- PROPULSION ------- Aluminum Leg Aluminum Leg > --- UTILITY ---------- High-capacity Matter Pod Terrain Scanner > --- WEAPON ----------- Medium Laser Small Laser > --- INVENTORY -------- Small Laser Assault Rifle Grenade Launcher Datajack [Rating: 7] Favorites ----------- Power Light Ion Engine Engine Light Ion Engine Propulsion Aluminum Leg Leg Aluminum Leg Utility Signal Interpreter Device Terrain Scanner Storage High-capacity Matter Pod Processor Signal Interpreter Protection Weapon Shielding Weapon Mining Laser Energy Gun Medium Laser Launcher Grenade Launcher Special Weapon Mining Laser Build | -11 -10 -10 ------- Run | Yrd Mat Min Slots Evolved . | . . . Power . | . . . Propulsion . | . . . Utility . | . . . Weapon . | . . . Parts Attached 16 | 5 9 2 Power 2 | 1 1 . Engine 2 | 1 1 . Core . | . . . Reactor . | . . . Propulsion 2 | 2 . . Treads . | . . . Leg 2 | 2 . . Wheel . | . . . Hover . | . . . Flight . | . . . Utility 4 | . 4 . Device 1 | . 1 . Storage 1 | . 1 . Processor 1 | . 1 . Hackware . | . . . Protection 1 | . 1 . Artifact . | . . . Weapon 8 | 2 4 2 Energy Gun 4 | 2 1 1 Energy Cannon . | . . . Ballistic Gun . | . . . Ballistic Cannon . | . . . Launcher 2 | . 1 1 Special Weapon 2 | . 2 . Impact Weapon . | . . . Slashing Weapon . | . . . Piercing Weapon . | . . . Special Melee Weapon . | . . . Unidentified Prototypes . | . . . Parts Lost 6 | . . 6 Power 1 | . . 1 Propulsion 2 | . . 2 Utility 1 | . . 1 Weapon 2 | . . 2 Highest Loss Streak 5 | . . 5 To Critical Strikes . | . . . Average Slot Usage (%) 84 | . 92 55 Engine 11 | . 14 3 Leg 22 | . 28 3 Device 5 | . 7 . Storage 2 | . 3 . Processor 7 | . 5 14 Protection 7 | . 5 14 Energy Gun 10 | . 10 7 Launcher 2 | . 1 7 Special Weapon 12 | . 15 3 Naked Turns . | . . . Heaviest Build 12 | 6 12 7 Greatest Support 20 | 20 20 3 Greatest Overweight (x) 2 | . . 2 Average Overweight (x) . | . . 1 Largest Inventory Capacity 5 | 5 5 5 Average Capacity 5 | 5 5 5 Most Carried 5 | 2 5 5 Average Carried 3 | 1 4 3 Final Capacity 5 | 5 5 5 Final Carried 4 | 2 4 3 Class Distribution -------------------- 100% | Mutant Dominant Class ---------------- Mutant | -10/Materials Mutant | -10/Mines Resources | -11 -10 -10 ----------- Run | Yrd Mat Min Matter Collected 322 | 250 54 18 Remotely . | . . . Salvage Created 128 | 35 93 . Parts 14 | 1 13 . Haulers Intercepted . | . . . Recyclers Shooed . | . . . Parts Field Recycled . | . . . Retrieved Matter . | . . . Parts Self-Destructed . | . . . Prevented . | . . . Kills | -11 -10 -10 ------- Run | Yrd Mat Min Combat Hostiles Destroyed 7 | 1 6 . Guns 6 | 1 5 . AOE 1 | . 1 . Classes Destroyed 4 | 1 3 . Builder 1 | . 1 . Watcher 1 | . 1 . Swarmer 6 | . 6 . Grunt 1 | 1 . . Best Kill Streak 4 | 1 4 . Combat Bots Only 2 | 1 2 . Max Kills in Single Turn 2 | 1 2 . Gunslinging . | . . . Exploded 1 | . 1 . Melee . | . . . Uniques/NPCs Destroyed . | . . . Combat | -11 -10 -10 -------- Run | Yrd Mat Min Hostile Shots Fired 89 | 2 58 29 Missed 18 | 1 13 4 Damage Taken 784 | 12 366 406 Core 255 | . 90 165 Absorbed by Shields . | . . . Redirected to Shielding 31 | . . 31 Core Remaining (%) 100 | 100 . . Volleys Fired 34 | 3 28 3 Largest 2 | 2 2 2 Hottest 200 | 90 90 200 Shots Fired 58 | 5 49 4 Gun 53 | 5 48 . Cannon . | . . . Launcher 1 | . 1 . Special 4 | . . 4 Kinetic . | . . . Thermal 57 | 5 48 4 Explosive 1 | . 1 . Electromagnetic . | . . . Robot Hit Streak 4 | 2 4 1 Robot Miss Streak 6 | 1 6 3 Penetration Max . | . . . Secondary Targets . | . . . Shots Hit Robots 17 | 2 14 1 Core Hits 10 | 2 8 . Critical Kills . | . . . Critical Parts Destroyed . | . . . Critical Strikes 1 | . 1 . Burn 1 | . 1 . Melee Attacks . | . . . Impact . | . . . Slashing . | . . . Piercing . | . . . Sneak Attacks . | . . . Combat Hostiles . | . . . Follow-up Attacks . | . . . Damage Inflicted 478 | 24 399 55 Guns 179 | 24 155 . Cannons . | . . . Explosions 244 | . 244 . Melee . | . . . Ramming 7 | . . 7 Kinetic . | . . . Thermal 406 | 24 334 48 Explosive 65 | . 65 . Electromagnetic . | . . . Impact . | . . . Slashing . | . . . Piercing . | . . . Highest Corruption 3 | . . 3 Average Corruption 3 | . . 3 Corruption Purged . | . . . Corruption Blocked . | . . . Overload Shots . | . . . Overflow Damage 65 | . 65 . Projectiles . | . . . Explosions 65 | . 65 . Melee . | . . . Knockbacks . | . . . Impact . | . . . Kinetic . | . . . Secondary . | . . . Self-Inflicted Damage 3 | . . 3 Shots . | . . . Rammed 1 | . . 1 Targets Rammed 1 | . . 1 Kicked . | . . . Crushed . | . . . Highest Temperature 270 | 66 270 228 Average Temperature 113 | 31 119 120 Received Heat Transfer 177 | 6 . 171 Effects 1 | . 1 . Interference 1 | . 1 . Siege Activations . | . . . Robots Corrupted . | . . . Combat Hostiles . | . . . Parts Fried . | . . . Impact Corruptions . | . . . Robots Melted . | . . . Combat Hostiles . | . . . Parts Melted . | . . . Heat Transferred 721 | 62 559 100 Parts Sabotaged . | . . . Parts Stolen . | . . . Parts Stripped . | . . . Power Chain Reactions . | . . . Alert | -11 -10 -10 ------- Run | Yrd Mat Min Peak Influence 245 | 20 245 136 Initial 95 | . 13 95 Average 141 | 8 194 92 Maximum Alert Level 1 | . 1 . Low Security (%) 55 | 100 29 100 Level 1 44 | . 70 . Level 2 . | . . . Level 3 . | . . . Level 4 . | . . . Level 5 . | . . . High Security . | . . . Max Security . | . . . Squads Dispatched 1 | . 1 . Investigation . | . . . Extermination . | . . . Reinforcement 1 | . 1 . Assault . | . . . Garrison . | . . . Intercept . | . . . Searches Triggered . | . . . Construction Impeded . | . . . Haulers Reinforced . | . . . Active Scanning Responses . | . . . Cargo Convoy Interrupts . | . . . Stealth | -11 -10 -10 --------- Run | Yrd Mat Min Distress Signals 4 | . 4 . Communications Jammed . | . . . Distress Signals . | . . . Times Spotted 20 | 1 10 9 Peak Tracking Total 5 | 1 3 5 Tactical Retreats 1 | . . 1 Traps | -11 -10 -10 ------- Run | Yrd Mat Min Traps Triggered . | . . . Indirectly . | . . . Trap Hack Attempts . | . . . Triggered . | . . . Disarmed . | . . . Reprogrammed . | . . . Reused . | . . . Traps Extracted . | . . . Installed . | . . . Triggered . | . . . Machines | -11 -10 -10 ---------- Run | Yrd Mat Min Machines Disabled 2 | . 2 . Max in Single Turn 2 | . 2 . Machines Repaired . | . . . Machines Dismantled . | . . . Machines Sabotaged . | . . . Overloaded Fab Kills . | . . . Hacking | -11 -10 -10 --------- Run | Yrd Mat Min Machines Accessed 3 | . 3 . Terminals 2 | . 2 . Fabricators . | . . . Repair Stations . | . . . Recycling Units 1 | . 1 . Scanalyzers . | . . . Garrison Access . | . . . Total Hacks 5 | . 5 . Successful 2 | . 2 . Failed 3 | . 3 . Catastrophic . | . . . Database Lockouts . | . . . Manual . | . . . Terminals 2 | . 2 . Fabricators . | . . . Repair Stations . | . . . Recycling Units 3 | . 3 . Scanalyzers . | . . . Garrison Access . | . . . Terminal Hacks . | . . . Fabricator Hacks . | . . . Repair Station Hacks . | . . . Recycling Unit Hacks 2 | . 2 . Recycle Component 1 | . 1 . Process 1 | . 1 . Scanalyzer . | . . . Garrison Access Hacks . | . . . Unauthorized Hacks . | . . . Terminals . | . . . Fabricators . | . . . Repair Stations . | . . . Recycling Units . | . . . Scanalyzers . | . . . Garrison Access . | . . . Data Cores Recovered . | . . . Used . | . . . Hacking Detections . | . . . Full Trace Events . | . . . Feedback Events . | . . . Feedback Blocked . | . . . Robot Schematics Acquired . | . . . Robots Built . | . . . Authchips . | . . . Time . | . . . Total Robot Build Rating . | . . . Part Schematics Acquired . | . . . Parts Built . | . . . Authchips . | . . . Time . | . . . Total Part Build Rating . | . . . Parts Repaired . | . . . Time . | . . . Parts Recycled 1 | . 1 . Recycled Matter 83 | . 83 . Retrieved Matter . | . . . Retrieved Components . | . . . Parts Scanalyzed . | . . . Part Schematics Acquired . | . . . Parts Damaged . | . . . Bothacking | -11 -10 -10 ------------ Run | Yrd Mat Min Used RIF Installer . | . . . Robots Hacked . | . . . Non-combat . | . . . Combat . | . . . Robot Hacks Applied . | . . . Relay Couplers Released . | . . . Fabnet Peak Effective % . | . . . Robots Rewired . | . . . Allies Hacked . | . . . Hacks Repelled . | . . . Allies | -11 -10 -10 -------- Run | Yrd Mat Min Total Allies . | . . . Largest Group . | . . . Highest-Rated Group . | . . . Highest-Rated Ally . | . . . Total Orders . | . . . Ally Attacks . | . . . Total Damage . | . . . Kills . | . . . Allies Corrupted . | . . . Allies Melted . | . . . Intel | -11 -10 -10 ------- Run | Yrd Mat Min Robot Analysis Total . | . . . Derelict Logs Recovered . | . . . Drone Launches . | . . . Drone Recoveries . | . . . Exploration | -11 -10 -10 ------------- Run | Yrd Mat Min Turns Passed 613 | 118 390 105 Spaces Moved 412 | 95 238 79 Core 101 | 22 . 79 Treads . | . . . Legs 311 | 73 238 . Wheels . | . . . Hover . | . . . Flight . | . . . Fastest Speed 50 | 50 120 50 Average Speed 114 | 103 120 108 Slowest Speed 150 | 120 120 150 Overloaded Moves . | . . . Propulsion Burnouts . | . . . Robots Hopped . | . . . Cave-ins Triggered . | . . . Exploration Rate (%) 24 | 7 46 21 Regions Visited 2 Branch Regions 1 Pre-discovered Areas . | . . . Known Exits Taken 1 | . 1 . Unknown Exits Taken 1 | 1 . . Scrap Searched 1 | . . 1 Spaces Dug . | . . . Terrain Destroyed 22 | . 21 1 Melee . | . . . Projectile 1 | . . 1 AOE 21 | . 21 . Terrain Rammed . | . . . Walls Destroyed . | . . . Machines Disabled . | . . . Actions | -11 -10 -10 --------- Run | Yrd Mat Min Total 493 | 109 298 86 Wait . | . . . Move 410 | 94 237 79 Hop . | . . . Pick Up 21 | 7 13 1 Fast Attach . | . . . Attach 15 | 5 8 2 Detach 3 | . 3 . Swap 1 | . 1 . Drop 8 | . 8 . Fire 34 | 3 28 3 Melee . | . . . Ram 1 | . . 1 Kick . | . . . Crush . | . . . Escape Stasis . | . . . Rewire . | . . . Trap . | . . . Miscellaneous . | . . . Route ------- -11/Scrapyard -10/Materials -10/Mines History --------- Turn | Location | Event 2 | -11/Scrapyard | Met Revision 17 62 | -11/Scrapyard | Discovered new exit (range 8) 119 | -11/Scrapyard | Entered Materials 283 | -10/Materials | Discovered new exit (range 7) 333 | -10/Materials | Build established: Mutant 508 | -10/Materials | Identified exit to Mines 509 | -10/Materials | Entered Mines 520 | -10/Mines | Core integrity fell below 50% 530 | -10/Mines | Assembled infested the area 535 | -10/Mines | Assisted by a Guerilla fighting off Assembled 535 | -10/Mines | Core integrity fell below 20% 565 | -10/Mines | Lost 5 parts (1p2n2w) 614 | -10/Mines | Destroyed by as-78145 with Assembled Heavy Rifle Last Messages --------------- try to find another way!" Ion Engine destroyed. Knocked back. A derelict emerges from the shadows: "You need to get out of here! I've been tracking a group of Assembled to figure out where they're coming from, and they're closing on this area, come on!" Acquired 4 matter. Slammed into T-07 Excavator. Searching scrap... Found Utility Shielding. Found EM Pulse Gun. Found Lrg. Storage Unit. Found 19 Matter. Acquired Utility Shielding. Acquired 14 matter. Signal Interpreter destroyed. System corrupted by crushing effect (+3). [Achievement: First Step to Greatness] Map ----- +----------------------------------------------------+ | | | | | | | | | | | | | ?????????????????????????????????????????????????? | | ?????????????####????????????????????????????????? | | ######?????### ##???????????????????????????????? | | # ##???## #???????????????????????????????? | | ##### #???????????????????????????????? | | ## #???????????????????????????????? | | #????????????????????????????????? | | # ##???????????????????????????????? | | ####### ###?????????????????????????????? | | ??????## ##????????????????????????????? | | ???????## ####?????????????????????????? | | ????????###### #?????????????????????????? | | ?????????????## #?????????????????????????? | | ??????????????####### #?????????????????????????? | | ????????????????????# #?????????????????????????? | | ????????????????????# #?????????????????????????? | | ????????????????????# #?????###??????*%?????????? | | #########???????????# ##### ## a = ????????? | | #???????????# a a#??????????? | | ## ### #???????????# @%| #???????????? | | ?# #?# #??####?????####### a #????????????? | | ?# #?# #?# ##???????????? a #????????????? | | ?# #?# ## #?????????????? #???????????? | | ?# ### ####????????????## ?????????? | | ## ## ??????????? ??????????? | | ## ???????????? #??????????? | | ### ########?????????????????????????? | | ##"#?## #????????????????????????????????? | | #?#???# ##????????????????????????????????? | | #?????# #?????????????????????????????????? | | ??????# ##?????????????????????????????????? | | ??????# ####??????????????????????????????????? | | ??????## ##?????????????????????????????????????? | | ???????####??????????????????????????????????????? | | ?????????????????????????????????????????????????? | | ?????????????????????????????????????????????????? | | ?????????????????????????????????????????????????? | | ?????????????????????????????????????????????????? | | ?????????????????????????????????????????????????? | | ?????????????????????????????????????????????????? | | ?????????????????????????????????????????????????? | | ?????????????????????????????????????????????????? | | ?????????????????????????????????????????????????? | | ?????????????????????????????????????????????????? | +----------------------------------------------------+ Best States ------------- Heat Dissipation 25 Energy Generation 10 Energy Capacity 250 Matter Stores 304 Matter Capacity 500 Sight Range 16 Terrain Scan Range 14 Terrain Scan Density 10 Weapon Shielding 33 Evasion (%) 55 Item Schematics ----------------- None Robot Schematics ------------------ None Fabricated ------------ Nothing Alien Tech Used ----------------- None Achievements -------------- First Step to Greatness Storm Trooper Uninvited Guest Challenges ------------ None Game ------ Seed KineticAntimissileKit Manual? 0 Play Time 00:17:11 Cumulative 0.8 hours Start 2024.03.27 @ 13:40:48 End 2024.04.01 @ 13:11:24 Sessions 6 Manual Loads 0 Difficulty Rogue Special Mode None Game No. 3 Rogue 3 Adventurer 0 Explorer 0 Win Type - Total 0 Types 0/0/0/0/0/0/0/0/0 Lore% 8 Gallery% 2 Achievement% 2 Wizard Run 0 Options --------- Layout 1 ASCII 0 Keyboard 0 Movement Mouse Keybinds 0 Fullscreen 2 Font 32/SmallcapsGlow Map View 50x35 Zoom Use 0% Tactical HUD 0 Map Filters NONE Filters NONE Steam 1 RUN: de4fe002-4171-4ab1-9e7f-790caf26400a